Workbook

Sheet SM-sarja
B1: Tino Saarela | E1: 27.5.1962
B2: MESTARUUSSARJA | E2: Runkosarja | I2: Kärkilyönnit (KL), pesänvälit | P2: Ylempi loppusarja | W2: Alempi loppusarja | AD2: Arvo-ottelut | AH2: Mitalit
B3: Vuosi | C3: Sija | D3: Seura | E3: OTT | F3: KUN | G3: LÖI | H3: TOI | I3: KL | J3: 0 > 1 | K3: 1 > 2 | L3: 2 > 3 | M3: 3 > k | N3: KL-% | P3: OTT | Q3: KUN | R3: LÖI | S3: TOI | T3: KL | U3: KL-% | W3: OTT | X3: KUN | Y3: LÖI | Z3: TOI | AA3: KL | AB3: KL-% | AD3: IL | AE3: LL | AF3: Cup | AG3: K | AH3: H | AI3: P
B4: 1981 | C4: 11. | D4: LP | F4: ykkössarja
B5: 1982 | C5: 8. | D5: VM | E5: 11 | F5: 0 | G5: 1 | H5: 4 | I5: 19 | J5: 6 | K5: 7 | L5: 5 | M5: 1 | N5: 41.3 % | W5: 5 | X5: 1 | Y5: 4 | Z5: 4 | AA5: 16 | AB5: 59.3 %
B6: 1983 | C6: 10. | D6: VM | E6: 21 | F6: 1 | G6: 2 | H6: 15 | I6: 86 | J6: 28 | K6: 39 | L6: 16 | M6: 3 | N6: 53.8 % | W6: 6 | X6: 0 | Y6: 0 | Z6: 2 | AA6: 14 | AB6: 40.0 %
B7: 1984 | C7: 2. | D7: VM | F7: ykkössarja | AF7: 1
B8: 1985 | C8: 6. | D8: VM | E8: 22 | F8: 0 | G8: 8 | H8: 18 | I8: 69 | J8: 12 | K8: 30 | L8: 19 | M8: 8 | N8: 52.3 %
B9: 1986 | C9: 9. | D9: VM | E9: 21 | F9: 0 | G9: 4 | H9: 6 | I9: 49 | J9: 12 | K9: 16 | L9: 17 | M9: 4 | N9: 45.4 % | W9: 4 | X9: 0 | Y9: 0 | Z9: 3 | AA9: 12 | AB9: 52.2 % | AE9: 1
B10: 1987 | C10: 11. | D10: RPL | E10: 19 | F10: 0 | G10: 2 | H10: 10 | I10: 32 | J10: 14 | K10: 10 | L10: 6 | M10: 2 | N10: 40.5 % | W10: 3 | X10: 0 | Y10: 0 | Z10: 1 | AA10: 5 | AB10: 41.7 %
B11: 1988
B12: 1989 | C12: 10. | D12: LP | E12: 17 | F12: 0 | G12: 3 | H12: 5 | I12: 35 | J12: 7 | K12: 19 | L12: 6 | M12: 3 | N12: 42.7 %
B13: Yhteensä | E13: 111 | F13: 1 | G13: 20 | H13: 58 | I13: 290 | J13: 79 | K13: 121 | L13: 69 | M13: 21 | N13: 47.8 % | P13: =SUM(P4:P12) -> 0 | Q13: =SUM(Q4:Q12) -> 0 | R13: =SUM(R4:R12) -> 0 | S13: =SUM(S4:S12) -> 0 | T13: =SUM(T4:T12) -> 0 | U13: 0.0 % | W13: =SUM(W4:W12) -> 18 | X13: =SUM(X4:X12) -> 1 | Y13: =SUM(Y4:Y12) -> 4 | Z13: =SUM(Z4:Z12) -> 10 | AA13: =SUM(AA4:AA12) -> 47 | AB13: 48.5 % | AD13: 0 | AE13: 1 | AF13: 1 | AG13: 0 | AH13: 0 | AI13: 0
B14: Pesispörssi | D14: 245.7
B16: URA SM-SARJASSA | E16: OTT | F16: KUN | G16: LÖI | H16: TOI | I16: KL | K16: ka/L | L16: ka/T | M16: ka/KL | N16: KL-% | P16: ENSIMMÄISET RUNKOSARJASSA
B17: Runkosarja | E17: 111 | F17: 1 | G17: 20 | H17: 58 | I17: 290 | K17: 0.19 | L17: 0.52 | M17: 2.61 | N17: 47.8 % | P17: Ottelu | R17: 02.05. 1982 VM - KiU 5-2 | X17: 1. ottelu | Z17: 19 v 11 kk 5 pv
B18: Ylempi loppusarja | P18: Lyöty | R18: 18.07. 1982 VM - AA 6-3 | X18: 9. ottelu | Z18: 20 v 1 kk 21 pv
B19: Alempi loppusarja | E19: 18 | F19: 1 | G19: 4 | H19: 10 | I19: 47 | K19: 0.28 | L19: 0.56 | M19: 2.61 | N19: 48.5 % | P19: Tuotu | R19: 02.05. 1982 VM - KiU 5-2 | X19: 1. ottelu | Z19: 19 v 11 kk 5 pv
B20: KAIKKI | E20: 129 | F20: 2 | G20: 24 | H20: 68 | I20: 337 | K20: 0.20 | L20: 0.53 | M20: 2.61 | N20: 47.9 % | P20: Kunnari | R20: 31.07. 1983 SMJ - VM 1-4 | X20: 35. ottelu | Z20: 21 v 2 kk 4 pv
B22: Seurat | D22: LP = Loimaan Palloilijat (1931)
D23: VM = Vaasan Maila (1933)
D24: RPL = Riihimäen Pallonlyöjät (1924)

Sheet MYP
B1: Tino Saarela | E1: 27.5.1962
B2: YKKÖSPESIS | E2: Runkosarja | L2: Runkosarja TOP-10 | Q2: Jatkosarjat | X2: SUOMENSARJA | AA2: Runkosarja | AH2: Runkosarja TOP-10 | AM2: Jatkosarjat
B3: Vuosi | C3: Sija | D3: Seura | E3: OTT | F3: KUN | G3: LÖI | H3: TOI | I3: KL | J3: KL-% | L3: LÖI | M3: TOI | N3: L+T | O3: KL | Q3: OTT | R3: KUN | S3: LÖI | T3: TOI | U3: KL | V3: KL-% | X3: Vuosi | Y3: Sija | Z3: Seura | AA3: OTT | AB3: KUN | AC3: LÖI | AD3: TOI | AE3: KL | AF3: KL-% | AH3: LÖI | AI3: TOI | AJ3: L+T | AK3: KL | AM3: OTT | AN3: KUN | AO3: LÖI | AP3: TOI | AQ3: KL | AR3: KL-%
B4: 1981 | C4: 11. | D4: LP | E4: 8 | F4: 0 | G4: 1 | H4: 3 | Q4: 9 | R4: 0 | S4: 3 | T4: 7
B6: 1984 | C6: 2. | D6: VM | E6: 10 | F6: 1 | G6: 5 | H6: 20 | M6: 2. | N6: 10. | Q6: 10 | R6: 0 | S6: 4 | T6: 16
B7: YHTEENSÄ | E7: =SUM(E4:E6) -> 18 | F7: =SUM(F4:F6) -> 1 | G7: =SUM(G4:G6) -> 6 | H7: =SUM(H4:H6) -> 23 | I7: =SUM(I4:I6) -> 0 | J7: 0.0 % | K7: =SUM(K4:K6) -> 0 | Q7: =SUM(Q4:Q6) -> 19 | R7: =SUM(R4:R6) -> 0 | S7: =SUM(S4:S6) -> 7 | T7: =SUM(T4:T6) -> 23 | U7: =SUM(U4:U6) -> 0 | V7: 0.0 % | W7: =SUM(W4:W6) -> 0 | X7: YHTEENSÄ | AA7: =SUM(AA4:AA6) -> 0 | AB7: =SUM(AB4:AB6) -> 0 | AC7: =SUM(AC4:AC6) -> 0 | AD7: =SUM(AD4:AD6) -> 0 | AE7: =SUM(AE4:AE6) -> 0 | AF7: 0.0 % | AG7: =SUM(AG4:AG6) -> 0 | AM7: =SUM(AM4:AM6) -> 0 | AN7: =SUM(AN4:AN6) -> 0 | AO7: =SUM(AO4:AO6) -> 0 | AP7: =SUM(AP4:AP6) -> 0 | AQ7: =SUM(AQ4:AQ6) -> 0 | AR7: 0.0 % | AS7: =SUM(AS4:AS6) -> 0
B9: KAIKKI OTTELUT | E9: OTT | F9: KUN | G9: LÖI | H9: TOI | I9: KL | J9: KL-% | L9: ka/L | M9: ka/T | N9: ka/l+t | O9: ka/kl | R9: Seurat | T9: LP = Loimaan Palloilijat (1931)
B10: SUPERPESIS | E10: 129 | F10: 2 | G10: 24 | H10: 68 | I10: 337 | J10: 47.9 % | K10: =PRODUCT(I10/J10) -> 703.5490605 | L10: =PRODUCT((F10+G10)/E10) -> 0.20 | M10: =PRODUCT(H10/E10) -> 0.53 | N10: =PRODUCT((F10+G10+H10)/E10) -> 0.73 | O10: =PRODUCT(I10/E10) -> 2.61 | T10: VM = Vaasan Maila (1933)
B11: YKKÖSPESIS | E11: =PRODUCT(E7+Q7) -> 37 | F11: =PRODUCT(F7+R7) -> 1 | G11: =PRODUCT(G7+S7) -> 13 | H11: =PRODUCT(H7+T7) -> 46 | I11: =PRODUCT(I7+U7) -> 0 | J11: 0.0 % | K11: =PRODUCT(K7+W7) -> 0 | L11: =PRODUCT((F11+G11)/E11) -> 0.38 | M11: =PRODUCT(H11/E11) -> 1.24 | N11: =PRODUCT((F11+G11+H11)/E11) -> 1.62 | O11: =PRODUCT(I11/E11) -> 0.00 | T11: RPL = Riihimäen Pallonlyöjät (1924)
B12: SUOMENSARJA | E12: =PRODUCT(AA7+AM7) -> 0 | F12: =PRODUCT(AB7+AN7) -> 0 | G12: =PRODUCT(AC7+AO7) -> 0 | H12: =PRODUCT(AD7+AP7) -> 0 | I12: =PRODUCT(AE7+AQ7) -> 0 | J12: 0.0 % | K12: =PRODUCT(AG7+AS7) -> 0 | L12: 0.00 | M12: 0.00 | N12: 0.00 | O12: 0.00
B13: YHTEENSÄ | E13: =SUM(E10:E12) -> 166 | F13: =SUM(F10:F12) -> 3 | G13: 37 | H13: 114 | I13: 337 | J13: 0.0 % | K13: =SUM(K10:K12) -> 703.5490605 | L13: =PRODUCT((F13+G13)/E13) -> 0.24 | M13: =PRODUCT(H13/E13) -> 0.69 | N13: =PRODUCT((F13+G13+H13)/E13) -> 0.93 | O13: 2.61

Sheet Arvo-ottelut
B1: LIITTO - LEHDISTÖ - KORTTI
B2: Tino Saarela | C2: 27.5.1962
B3: MIEHET | C3: Tulos | D3: Joukkue | E3: Seura | G3: V | H3: T | I3: H | J3: Up. | K3: Lj. | L3: Palk. | M3: O | N3: K | O3: L | P3: T | Q3: KL | R3: 1 | S3: 2 | T3: 3 | U3: k | V3: KL-% | W3: Pelinjohtaja | X3: Yleisöä
B4: 06.06. 1986 Lahti | C4: 5-5 | D4: Liitto | E4: VM | H4: 1 | K4: vai | L4: II p | M4: 1 | O4: 1 | P4: 1 | Q4: 3/3 | S4: 1/1 | T4: 1/1 | U4: 1/1 | V4: 100.0 % | W4: Vesa Lipsanen | X4: 5000
B5: Ikä ensimmäisessä ottelussa | C5: 24 v 0 kk 10 pv

Sheet Kärkilyönnit
B1: KÄRKILYÖNNIT RUNKOSARJASSA | V1: VUOSITTAISET SIJOITUKSET TOP - 30
G2: 0 > 1 | J2: 1 > 2 | M2: 2 > 3 | P2: 3 > k | S2: Yhteensä
B3: Vuosi | C3: Sija | D3: Seura | E3: OTT | F3: KL | G3: YHT | H3: % | I3: KL | J3: YHT | K3: % | L3: KL | M3: YHT | N3: % | O3: KL | P3: YHT | Q3: % | R3: KL | S3: YHT | T3: % | V3: Vuosi | W3: Sija | X3: Seura | Y3: 0 > 1 | Z3: 1 > 2 | AA3: 2 > 3 | AB3: 3 > k | AC3: KL
B4: 1982 | C4: 9. | D4: VM | E4: 11 | F4: 6 | G4: 17 | H4: =PRODUCT(F4/G4) -> 35.3 % | I4: 7 | J4: 11 | K4: =PRODUCT(I4/J4) -> 63.6 % | L4: 5 | M4: 8 | N4: =PRODUCT(L4/M4) -> 62.5 % | O4: 1 | P4: 10 | Q4: =PRODUCT(O4/P4) -> 10.0 % | R4: 19 | S4: =PRODUCT(G4+J4+M4+P4) -> 46 | T4: =PRODUCT(R4/S4) -> 41.3 % | V4: 1982 | W4: 9. | X4: VM
B5: 1983 | C5: 8. | D5: VM | E5: 21 | F5: 28 | G5: 48 | H5: =PRODUCT(F5/G5) -> 58.3 % | I5: 39 | J5: 60 | K5: =PRODUCT(I5/J5) -> 65.0 % | L5: 16 | M5: 37 | N5: =PRODUCT(L5/M5) -> 43.2 % | O5: 3 | P5: 15 | Q5: =PRODUCT(O5/P5) -> 20.0 % | R5: 86 | S5: 160 | T5: =PRODUCT(R5/S5) -> 53.8 % | V5: 1983 | W5: 8. | X5: VM | Y5: 30. | Z5: 11.
B6: 1984 | V6: 1984
B7: 1985 | C7: 6. | D7: VM | E7: 22 | F7: 12 | G7: 33 | H7: =PRODUCT(F7/G7) -> 36.4 % | I7: 30 | J7: 40 | K7: =PRODUCT(I7/J7) -> 75.0 % | L7: 19 | M7: 34 | N7: =PRODUCT(L7/M7) -> 55.9 % | O7: 8 | P7: 25 | Q7: =PRODUCT(O7/P7) -> 32.0 % | R7: 69 | S7: 132 | T7: 52.3 % | V7: 1985 | W7: 6. | X7: VM | Z7: 25.
B8: 1986 | C8: 7. | D8: VM | E8: 21 | F8: 12 | G8: 28 | H8: =PRODUCT(F8/G8) -> 42.9 % | I8: 16 | J8: 23 | K8: =PRODUCT(I8/J8) -> 69.6 % | L8: 17 | M8: 30 | N8: =PRODUCT(L8/M8) -> 56.7 % | O8: 4 | P8: 27 | Q8: =PRODUCT(O8/P8) -> 14.8 % | R8: 49 | S8: 108 | T8: 45.4 % | V8: 1986 | W8: 7. | X8: VM
B9: 1987 | C9: 11. | D9: RPL | E9: 19 | F9: 14 | I9: 10 | L9: 6 | O9: 2 | R9: =PRODUCT(F9+I9+L9+O9) -> 32 | S9: 79 | T9: 40.5 % | V9: 1987 | W9: 11. | X9: RPL
B10: 1988 | V10: 1988
B11: 1989 | C11: 10. | D11: LP | E11: 17 | F11: 7 | I11: 19 | L11: 6 | O11: 3 | R11: =PRODUCT(F11+I11+L11+O11) -> 35 | S11: 82 | T11: 42.7 % | V11: 1989 | W11: 10. | X11: LP
B12: Yhteensä | E12: =SUM(E4:E11) -> 111 | F12: =SUM(F4:F11)-21 -> 58 | G12: =SUM(G4:G11) -> 126 | H12: =PRODUCT(F12/G12) -> 46.0 % | I12: =SUM(I4:I11)-29 -> 92 | J12: =SUM(J4:J11) -> 134 | K12: =PRODUCT(I12/J12) -> 68.7 % | L12: =SUM(L4:L11)-12 -> 57 | M12: =SUM(M4:M11) -> 109 | N12: =PRODUCT(L12/M12) -> 52.3 % | O12: =SUM(O4:O11)-5 -> 16 | P12: =SUM(P4:P11) -> 77 | Q12: =PRODUCT(O12/P12) -> 20.8 % | R12: =SUM(R4:R11) -> 290 | S12: =SUM(S4:S11) -> 607 | T12: =PRODUCT(R12/S12) -> 47.8 %
